fUSD/lending_fUSD_20250117
["ID","MTS","AMOUNT","RATE_DAILY","PERIOD"]
[349324324,1737124242209,-1921.00128043,0.000232,2]
[349324325,1737124242328,-163.8296541,0.00023199,2]
[349324326,1737124242338,-4501.60362401,0.000232,2]
[349324327,1737124242363,-500.0,0.00023199,2]
[349324328,1737124242373,-500.0,0.00023199,2]
[349324329,1737124242382,-4088.26953805,0.000232,2]
[349324330,1737124242397,-800.31332225,0.00023199,2]
[349324366,1737124242944,-1230.09667775,0.00023199,2]
[349324368,1737124242953,-500.0,0.00023199,2]
[349324370,1737124242962,-500.0,0.00023199,2]
[349324372,1737124242971,-1678.79332225,0.00023199,2]
[349324373,1737124242982,-351.61667775,0.00023199,2]
[349324374,1737124242991,-500.0,0.00023199,2]
[349324375,1737124243001,-529.13344353,0.00023199,2]
[349324376,1737124243010,-510.67949475,0.00023199,2]
[349324377,1737124243022,-1519.73050525,0.00023199,2]
[349324378,1737124243031,-500.0,0.00023199,2]
[349324379,1737124243040,-2030.41,0.00023199,2]
[349324380,1737124243053,-326.06277854,0.00023199,2]
[349324381,1737124243062,-2030.41,0.00023199,2]
[349324382,1737124243072,-2030.41,0.00023199,2]
[349324383,1737124243082,-2030.41,0.00023199,2]
[349324384,1737124243091,-2030.41,0.00023199,2]
[349324386,1737124243100,-1382.70018646,0.00023199,2]
[349324388,1737124243112,-647.70981354,0.00023199,2]
[349324390,1737124243121,-2030.41,0.00023199,2]
[349324392,1737124243131,-5465.76168372,0.000232,2]
[349324394,1737124243142,-3158.27562113,0.000232,2]
[349324397,1737124243162,-500.0,0.00023199,2]
[349324399,1737124243171,-1274.36611897,0.00023199,2]
[349324401,1737124243183,-756.04388103,0.00023199,2]
[349324403,1737124243192,-676172.17194823,0.000232,2]
[349324406,1737124243203,-925.43211547,0.000232,2]
[349324433,1737124243453,-121958.75929051,0.000232,2]
[349324437,1737124243484,-4035.66311225,0.000232,2]
[349324439,1737124243496,-500.0,0.000232,2]
[349324675,1737124245819,-500.0,0.00023199,2]
[349324677,1737124245828,-424.70896219,0.00023199,2]
[349324680,1737124245840,-1605.70103781,0.00023199,2]
[349324682,1737124245849,-500.0,0.00023199,2]
[349324684,1737124245859,-2030.41,0.00023199,2]
[349324686,1737124245868,-500.0,0.00023199,2]
[349324688,1737124245878,-500.0,0.00023199,2]
[349324690,1737124245887,-2030.60596993,0.00023199,2]
[349324692,1737124245897,-500.0,0.00023199,2]
[349324694,1737124245906,-761.53,0.00023199,2]
[349324696,1737124245915,-500.0,0.00023199,2]
[349324698,1737124245925,-500.0,0.00023199,2]
[349324699,1737124245934,-761.53,0.00023199,2]
[349324702,1737124245943,-500.0,0.00023199,2]
[349324704,1737124245953,-500.0,0.00023199,2]
[349324705,1737124245962,-707.7,0.00023199,2]
[349324707,1737124245972,-761.53,0.00023199,2]
[349324709,1737124245982,-500.0,0.00023199,2]
[349324711,1737124245991,-500.0,0.00023199,2]
[349324713,1737124246001,-707.7,0.00023199,2]
[349324715,1737124246011,-761.53,0.00023199,2]
[349324718,1737124246020,-500.0,0.00023199,2]
[349324720,1737124246030,-500.0,0.00023199,2]
[349324722,1737124246039,-500.0,0.00023199,2]
[349324724,1737124246049,-500.0,0.00023199,2]
[349324725,1737124246062,-707.7,0.00023199,2]
[349324727,1737124246071,-500.0,0.00023199,2]
[349324729,1737124246081,-761.53,0.00023199,2]
[349324731,1737124246090,-500.0,0.00023199,2]
[349324733,1737124246100,-446.68410445,0.00023199,2]
[349324736,1737124246116,-53.31589555,0.00023199,2]
[349324738,1737124246125,-392.10310445,0.00023199,2]
[349324741,1737124246146,-107.89689555,0.00023199,2]
[349324743,1737124246155,-438.37786396,0.00023199,2]
[349324745,1737124246166,-269.32213604,0.00023199,2]
[349324747,1737124246176,-500.0,0.00023199,2]
[349324749,1737124246186,-500.0,0.00023199,2]
[349324751,1737124246195,-761.53,0.00023199,2]
[349324753,1737124246204,-390.84466396,0.00023199,2]
[349324756,1737124246215,-316.85533604,0.00023199,2]
[349324758,1737124246225,-500.0,0.00023199,2]
[349324760,1737124246234,-562.51,0.00023199,2]
[349324762,1737124246243,-500.0,0.00023199,2]
[349324763,1737124246252,-761.53,0.00023199,2]
[349324766,1737124246262,-707.7,0.00023199,2]
[349324767,1737124246271,-500.0,0.00023199,2]
[349324770,1737124246280,-505.78169699,0.00023199,2]
[349324772,1737124246289,-562.51,0.00023199,2]
[349324774,1737124246299,-500.0,0.00023199,2]
[349324776,1737124246312,-500.0,0.00023199,2]
[349324778,1737124246322,-2002.64763841,0.000232,2]
[349324781,1737124246347,-74981.7865505,0.000232,2]
[349324784,1737124246363,-761.53,0.00023199,2]
[349324786,1737124246373,-7420.6871431,0.000232,2]
[349324793,1737124246436,-500.0,0.00023199,2]
[349324795,1737124246446,-707.7,0.00023199,2]
[349324797,1737124246455,-500.0,0.00023199,2]
[349324799,1737124246466,-24461.04903485,0.000232,2]
[349324801,1737124246483,-43067.63479191,0.000232,2]
[349324804,1737124246494,-64618.28349736,0.000232,2]
[349324806,1737124246506,-13191.61799893,0.000232,2]
[349324808,1737124246519,-79457.16236492,0.000232,2]
[349324810,1737124246530,-5570.45453968,0.000232,2]
[349324813,1737124246542,-164424.11107176,0.000232,2]
[349324815,1737124246560,-4508.5399997,0.000232,2]
[349324817,1737124246571,-2996.61865781,0.000232,2]
[349324819,1737124246582,-353.526063,0.000232,2]
[349324821,1737124246593,-3284.46134245,0.000232,2]
[349324824,1737124246613,-562.51,0.00023199,2]
[349324826,1737124246622,-293.62385,0.000232,2]
[349324830,1737124246649,-500.0,0.00023199,2]
[349324832,1737124246660,-255.60676301,0.00023199,2]
[349326766,1737124734851,522.36079982,0.00023199,120]
[349326767,1737124933732,156.36,0.00010137,2]
[349326769,1737125246147,-1209.8,0.00019877,2]
[349326770,1737125246170,-489.64588386,0.0002,2]
[349326800,1737125431974,-2021.16,0.0002,2]
[349326801,1737125431986,-315.56130515,0.0002,2]
[349326802,1737125431997,-2781.10321289,0.0002,2]
[349326803,1737125432006,-1482.47,0.00021455,2]
[349326804,1737125432015,-250.0,0.00021479,2]
[349326805,1737125432025,-1500.0,0.00021576,2]
[349326806,1737125432034,-173.2,0.00021675,2]
[349326807,1737125432044,-400.67,0.00021755,2]
[349326808,1737125432054,-250.0,0.00021884,2]
[349326809,1737125432063,-150.0,0.0002189,2]
[349326810,1737125432072,-23900.0,0.00021896,2]
[349326811,1737125432081,-150.0,0.00021918,2]
[349326812,1737125432090,-200.0,0.00021927,2]
[349326813,1737125432100,-193.19,0.00021956,2]
[349326814,1737125432109,-250.0,0.0002199,2]
[349326815,1737125432121,-468.0,0.00022,2]
[349326816,1737125432130,-1214.2,0.00022021,2]
[349326817,1737125432140,-1000.0,0.00022027,2]
[349326818,1737125432150,-659.44,0.0002204,2]
[349326819,1737125432159,-1209.8,0.0002214,2]
[349326820,1737125432169,-150.0,0.00022192,2]
[349326821,1737125432178,-1000.0,0.00022387,2]
[349326822,1737125432187,-168.45,0.00022668,2]
[349326823,1737125432196,-621.62472602,0.00022759,2]
[349326824,1737125432205,-1000.0,0.00022763,2]
[349326825,1737125432215,-1000.0,0.00022789,2]
[349326826,1737125432224,-29252.93945749,0.000228,2]
[349326827,1737125432233,-1214.2,0.00022835,2]
[349326828,1737125432243,-177.3,0.00022849,2]
[349326829,1737125432252,-502.38346633,0.00022859,2]
[349326830,1737125432261,-500.0,0.00022859,2]
[349326831,1737125432271,-500.0,0.00022859,2]
[349326832,1737125432280,-500.0,0.00022859,2]
[349326833,1737125432289,-500.0,0.00022859,2]
[349326834,1737125432298,-500.0,0.00022859,2]
[349326835,1737125432307,-501.26898816,0.00022859,2]
[349326836,1737125432316,-505.29197879,0.00022859,2]
[349326837,1737125432327,-500.86037132,0.00022859,2]
[349326838,1737125432336,-500.0,0.00022859,2]
[349326840,1737125432346,-501.55883974,0.00022859,2]
[349326841,1737125432355,-500.0,0.00022859,2]
[349326843,1737125432366,-500.0,0.00022859,2]
[349326845,1737125432375,-500.0,0.00022859,2]
[349326847,1737125432384,-500.0,0.00022859,2]
[349326848,1737125432394,-500.5549151,0.00022859,2]
[349326850,1737125432403,-502.79096963,0.00022859,2]
[349326851,1737125432412,-500.0,0.00022859,2]
[349326852,1737125432422,-500.0,0.00022859,2]
[349326853,1737125432431,-500.0,0.00022859,2]
[349326854,1737125432441,-500.80078046,0.00022859,2]
[349326855,1737125432452,-500.0,0.00022859,2]
[349326856,1737125432461,-500.0,0.00022859,2]
[349326857,1737125432470,-500.0,0.00022859,2]
[349326858,1737125432479,-500.0,0.00022859,2]
[349326859,1737125432488,-1221.63,0.00022859,2]
[349326862,1737125432498,-500.0,0.00022859,2]
[349326864,1737125432508,-500.91694964,0.00022859,2]
[349326866,1737125432517,-500.0,0.00022859,2]
[349326868,1737125432526,-1746.75,0.00022859,2]
[349326870,1737125432535,-500.0,0.00022859,2]
[349326872,1737125432544,-2365.5,0.00022859,2]
[349326873,1737125432553,-500.0,0.00022859,2]
[349326875,1737125432562,-500.0,0.00022859,2]
[349326877,1737125432572,-500.48261642,0.00022859,2]
[349326879,1737125432581,-500.0,0.00022859,2]
[349326881,1737125432591,-502.02596641,0.00022859,2]
[349326883,1737125432600,-500.0,0.00022859,2]
[349326885,1737125432609,-500.0,0.00022859,2]
[349326887,1737125432621,-500.30481047,0.00022859,2]
[349326889,1737125432631,-500.0,0.00022859,2]
[349326891,1737125432640,-500.0,0.00022859,2]
[349326893,1737125432650,-500.0,0.00022859,2]
[349326895,1737125432659,-500.82902876,0.00022859,2]
[349326897,1737125432668,-500.0,0.00022859,2]
[349326899,1737125432678,-500.0,0.00022859,2]
[349326901,1737125432687,-500.0,0.00022859,2]
[349326903,1737125432697,-500.0,0.00022859,2]
[349326905,1737125432706,-500.0,0.00022859,45]
[349326907,1737125432715,-501.30227619,0.00022859,2]
[349326909,1737125432724,-500.0,0.00022859,2]
[349326911,1737125432733,-500.20843444,0.00022859,2]
[349326913,1737125432743,-500.0,0.00022859,2]
[349326915,1737125432752,-500.0,0.00022859,2]
[349326917,1737125432762,-500.0,0.00022859,2]
[349326918,1737125432772,-500.0,0.00022859,2]
[349326920,1737125432782,-500.0,0.00022859,2]
[349326922,1737125432791,-500.0,0.00022859,2]
[349326924,1737125432801,-500.0,0.00022859,2]
[349326926,1737125432810,-500.62312088,0.00022859,2]
[349326928,1737125432820,-262.30433062,0.00022859,2]
[349326931,1737125432835,-237.69566938,0.00022859,2]
[349326933,1737125432844,-500.0,0.00022859,2]
[349326935,1737125432853,-341.97558115,0.00022859,2]
[349326938,1737125432878,-158.02441885,0.00022859,2]
[349326940,1737125432887,-500.0,0.00022859,2]
[349326942,1737125432896,-501.31798014,0.00022859,2]
[349326944,1737125432907,-500.0,0.00022859,2]
[349326946,1737125432917,-500.0,0.00022859,2]
[349326948,1737125432927,-500.0,0.00022859,2]
[349326950,1737125432935,-500.0,0.00022859,2]
[349326952,1737125432945,-500.0,0.00022859,2]
[349326954,1737125432955,-500.0,0.00022859,2]
[349326956,1737125432964,-500.0,0.00022859,2]
[349326958,1737125432973,-500.0,0.00022859,2]
[349326960,1737125432983,-502.61471287,0.00022859,2]
[349326962,1737125432992,-500.0,0.00022859,2]
[349326964,1737125433001,-500.0,0.00022859,2]
[349326966,1737125433010,-500.0,0.00022859,2]
[349326968,1737125433019,-500.0,0.00022859,2]
[349326969,1737125433028,-500.0,0.00022859,2]
[349326972,1737125433038,-500.0,0.00022859,2]
[349326974,1737125433049,-500.0,0.00022859,2]
[349326975,1737125433059,-500.0,0.00022859,2]
[349326977,1737125433068,-500.0,0.00022859,2]
[349326980,1737125433078,-500.0,0.00022859,2]
[349326981,1737125433087,-500.0,0.00022859,2]
[349326983,1737125433096,-500.0,0.00022859,2]
[349326985,1737125433106,-500.0,0.00022859,2]
[349326987,1737125433118,-500.0,0.00022859,2]
[349326989,1737125433128,-500.0,0.00022859,2]
[349326991,1737125433137,-500.0,0.00022859,2]
[349326993,1737125433147,-500.0,0.00022859,2]
[349326995,1737125433156,-222.33796551,0.00022859,2]
[349326998,1737125433172,-277.66203449,0.00022859,2]
[349327000,1737125433182,-500.0,0.00022859,2]
[349327002,1737125433191,-500.0,0.00022859,2]
[349327003,1737125433200,-500.89256421,0.00022859,2]
[349327004,1737125433210,-2035.665477,0.00022859,2]
[349327005,1737125433219,-500.0,0.00022859,2]
[349327006,1737125433229,-500.0,0.00022859,2]
[349327007,1737125433239,-500.0,0.00022859,2]
[349327008,1737125433249,-500.0,0.00022859,2]
[349327009,1737125433258,-500.0,0.00022859,2]
[349327010,1737125433268,-257.24956675,0.00022859,2]
[349327011,1737125433278,-153.022109,0.00022859,2]
[349327012,1737125433287,-310.12698176,0.00022859,2]
[349327013,1737125433297,-500.0,0.00022859,2]
[349327014,1737125433306,-500.0,0.00022859,2]
[349327015,1737125433315,-398.14016766,0.00022859,2]
[349327016,1737125433325,-161.826172,0.00022859,2]
[349327017,1737125433335,-500.0,0.00022859,2]
[349327019,1737125433344,-500.0,0.00022859,2]
[349327021,1737125433354,-500.0,0.00022859,2]
[349327023,1737125433366,-500.0,0.00022859,2]
[349327025,1737125433375,-500.0,0.00022859,2]
[349327027,1737125433385,-500.0,0.00022859,2]
[349327029,1737125433394,-56.59714498,0.00022859,2]
[349327032,1737125433408,-443.40285502,0.00022859,2]
[349327034,1737125433418,-171.31895876,0.00022859,2]
[349327036,1737125433427,-215.45757582,0.00022859,2]
[349327045,1737125433511,-284.54242418,0.00022859,2]
[349327047,1737125433522,-500.0,0.00022859,2]
[349327049,1737125433531,-500.0,0.00022859,2]
[349327051,1737125433541,-500.0,0.00022859,2]
[349327053,1737125433551,-1941.059364,0.00022859,2]
[349327055,1737125433561,-500.0,0.00022859,2]
[349327057,1737125433571,-500.0,0.00022859,2]
[349327059,1737125433581,-500.0,0.00022859,2]
[349327061,1737125433590,-500.0,0.00022859,2]
[349327085,1737125433825,-500.66955117,0.00022859,2]
[349327087,1737125433835,-573.85,0.00022859,2]
[349327089,1737125433845,-500.5646207,0.00022859,2]
[349327091,1737125433855,-574.24,0.00022859,2]
[349327093,1737125433866,-291.57414269,0.00022859,2]
[349327095,1737125433878,-208.42585731,0.00022859,2]
[349327097,1737125433888,-500.56175875,0.00022859,2]
[349327099,1737125433899,-500.0,0.00022859,2]
[349327101,1737125433908,-500.0,0.00022859,2]
[349327103,1737125433919,-500.0,0.00022859,2]
[349327105,1737125433929,-500.0,0.00022859,2]
[349327107,1737125433938,-500.15425859,0.00022859,2]
[349327109,1737125433947,-500.0,0.00022859,2]
[349327111,1737125433957,-500.0,0.00022859,2]
[349327113,1737125433966,-500.0,0.00022859,2]
[349327115,1737125433976,-500.0,0.00022859,2]
[349327117,1737125433985,-500.0,0.00022859,2]
[349327119,1737125433995,-500.0,0.00022859,2]
[349327121,1737125434004,-500.0,0.00022859,2]
[349327123,1737125434013,-500.0,0.00022859,2]
[349327125,1737125434022,-500.0,0.00022859,2]
[349327127,1737125434032,-500.0,0.00022859,2]
[349327128,1737125434041,-500.0,0.00022859,2]
[349327130,1737125434051,-500.21226639,0.00022859,2]
[349327132,1737125434060,-500.0,0.00022859,2]
[349327134,1737125434070,-500.0,0.00022859,2]
[349327136,1737125434079,-500.0,0.00022859,2]
[349327138,1737125434088,-500.0,0.00022859,2]
[349327140,1737125434097,-500.18046831,0.00022859,2]
[349327142,1737125434106,-500.0,0.00022859,2]
[349327144,1737125434116,-525.42,0.00022859,2]
[349327146,1737125434126,-500.0,0.00022859,2]
[349327148,1737125434135,-500.0,0.00022859,2]
[349327150,1737125434145,-541.66,0.00022859,2]
[349327152,1737125434155,-500.51640628,0.00022859,2]
[349327154,1737125434164,-500.0,0.00022859,2]
[349327155,1737125434173,-500.0,0.00022859,2]
[349327157,1737125434183,-500.0,0.00022859,2]
[349327159,1737125434193,-500.0,0.00022859,2]
[349327161,1737125434202,-500.0,0.00022859,2]
[349327163,1737125434211,-500.0,0.00022859,2]
[349327165,1737125434221,-500.0,0.00022859,2]
[349327167,1737125434230,-500.0,0.00022859,2]
[349327169,1737125434240,-500.0,0.00022859,2]
[349327171,1737125434249,-561.91,0.00022859,2]
[349327173,1737125434259,-500.0,0.00022859,2]
[349327175,1737125434268,-500.1405028,0.00022859,2]
[349327177,1737125434277,-500.0,0.00022859,2]
[349327179,1737125434287,-591.38,0.00022859,2]
[349327181,1737125434296,-500.0,0.00022859,2]
[349327183,1737125434305,-500.0,0.00022859,2]
[349327185,1737125434314,-500.0,0.00022859,2]
[349327187,1737125434324,-500.0,0.00022859,2]
[349327189,1737125434333,-500.0,0.00022859,2]
[349327191,1737125434343,-500.0,0.00022859,2]
[349327193,1737125434353,-500.0,0.00022859,2]
[349327195,1737125434364,-580.64,0.00022859,2]
[349327197,1737125434377,-502.55654369,0.00022859,2]
[349327199,1737125434387,-500.0,0.00022859,2]
[349327201,1737125434397,-500.0,0.00022859,2]
[349327203,1737125434410,-500.17576071,0.00022859,2]
[349327205,1737125434423,-500.0,0.00022859,2]
[349327207,1737125434436,-500.0,0.00022859,2]
[349327209,1737125434447,-500.0,0.00022859,2]
[349327211,1737125434458,-500.0,0.00022859,2]
[349327213,1737125434468,-244.39323699,0.00022859,2]
[349327215,1737125434479,-500.0,0.00022859,2]
[349327217,1737125434491,-500.0,0.00022859,2]
[349327219,1737125434502,-500.0,0.00022859,2]
[349327221,1737125434512,-500.0,0.00022859,2]
[349327223,1737125434523,-500.0,0.00022859,2]
[349327226,1737125434535,-500.0,0.00022859,2]
[349327228,1737125434546,-500.0,0.00022859,2]
[349327229,1737125434556,-500.0,0.00022859,2]
[349327232,1737125434567,-548.1,0.00022859,2]
[349327233,1737125434577,-500.0,0.00022859,2]
[349327235,1737125434587,-666.66,0.00022859,2]
[349327237,1737125434597,-500.26783216,0.00022859,2]
[349327239,1737125434607,-500.0,0.00022859,2]
[349327242,1737125434621,-500.0,0.00022859,2]
[349327244,1737125434631,-500.0,0.00022859,2]
[349327246,1737125434641,-500.0,0.00022859,2]
[349327247,1737125434651,-501.28,0.00022859,2]
[349327249,1737125434662,-500.0,0.00022859,2]
[349327251,1737125434672,-500.0,0.00022859,2]
[349327254,1737125434682,-500.0,0.00022859,2]
[349327255,1737125434692,-504.02283571,0.00022859,2]
[349327258,1737125434702,-500.0,0.00022859,2]
[349327260,1737125434712,-500.0,0.00022859,2]
[349327262,1737125434721,-500.0,0.00022859,2]
[349327264,1737125434731,-500.0,0.00022859,2]
[349327266,1737125434740,-1014.18,0.00022859,2]
[349327267,1737125434749,-500.0,0.00022859,2]
[349327269,1737125434759,-500.0,0.00022859,2]
[349327272,1737125434769,-160.60321796,0.00022859,2]
[349327274,1737125434779,-500.0,0.00022859,2]
[349327276,1737125434788,-500.8980088,0.00022859,2]
[349327277,1737125434798,-500.0,0.00022859,2]
[349327280,1737125434807,-500.0,0.00022859,2]
[349327282,1737125434820,-500.0,0.00022859,2]
[349327283,1737125434830,-811.16,0.00022859,2]
[349327286,1737125434840,-500.0,0.00022859,2]
[349327288,1737125434850,-500.0,0.00022859,2]
[349327290,1737125434861,-500.0,0.00022859,2]
[349327292,1737125434873,-500.0,0.00022859,2]
[349327294,1737125434883,-500.0,0.00022859,2]
[349327296,1737125434894,-289.53006669,0.00022859,2]
[349327298,1737125434903,-500.0,0.00022859,2]
[349327300,1737125434913,-806.99,0.00022859,2]
[349327302,1737125434923,-500.0,0.00022859,2]
[349327304,1737125434932,-500.0,0.00022859,2]
[349327306,1737125434941,-500.0,0.00022859,2]
[349327308,1737125434950,-171.0045855,0.00022859,2]
[349327310,1737125434960,-500.0,0.00022859,2]
[349327312,1737125434969,-500.0,0.00022859,2]
[349327314,1737125434979,-500.0,0.00022859,2]
[349327316,1737125434988,-161.71034873,0.00022859,2]
[349327318,1737125434998,-500.0,0.00022859,2]
[349327320,1737125435007,-672.06,0.00022859,2]
[349327322,1737125435016,-940.9,0.00022859,2]
[349327324,1737125435026,-500.0,0.00022859,2]
[349327326,1737125435035,-500.0,0.00022859,2]
[349327327,1737125435045,-765.28,0.00022859,2]
[349327329,1737125435055,-500.0,0.00022859,2]
[349327331,1737125435064,-500.0,0.00022859,2]
[349327333,1737125435077,-500.0,0.00022859,2]
[349327336,1737125435089,-500.0,0.00022859,2]
[349327338,1737125435098,-562.5,0.00022859,2]
[349327340,1737125435107,-500.0,0.00022859,2]
[349327342,1737125435118,-500.0,0.00022859,2]
[349327344,1737125435127,-500.0,0.00022859,2]
[349327346,1737125435136,-500.0,0.00022859,2]
[349327347,1737125435146,-500.0,0.00022859,2]
[349327349,1737125435155,-500.0,0.00022859,2]
[349327352,1737125435165,-502.24,0.00022859,2]
[349327354,1737125435174,-729.52,0.00022859,2]
[349327355,1737125435184,-500.0,0.00022859,2]
[349327358,1737125435193,-923.06,0.00022859,2]
[349327359,1737125435203,-500.0,0.00022859,2]
[349327361,1737125435212,-941.7,0.00022859,2]
[349327363,1737125435222,-500.0,0.00022859,2]
[349327365,1737125435231,-500.0,0.00022859,2]
[349327367,1737125435240,-500.0,0.00022859,2]
[349327369,1737125435249,-500.0,0.00022859,2]
[349327372,1737125435259,-999.7,0.00022859,2]
[349327373,1737125435268,-500.7522919,0.00022859,2]
[349327376,1737125435278,-500.0,0.00022859,2]
[349327377,1737125435287,-500.0,0.00022859,2]
[349327379,1737125435296,-1005.72,0.00022859,2]
[349327381,1737125435306,-534.26311102,0.00022859,2]
[349327383,1737125435315,-591.31,0.00022859,2]
[349327385,1737125435324,-770.3,0.00022859,2]
[349327387,1737125435333,-500.0,0.00022859,2]
[349327389,1737125435342,-500.0,0.00022859,2]
[349327391,1737125435351,-500.0,0.00022859,2]
[349327393,1737125435360,-500.0,0.00022859,2]
[349327395,1737125435372,-500.0,0.00022859,2]
[349327397,1737125435381,-500.0,0.00022859,2]
[349327399,1737125435392,-500.0,0.00022859,2]
[349327401,1737125435401,-855.95,0.00022859,2]
[349327403,1737125435410,-698.22,0.00022859,2]
[349327405,1737125435420,-500.0,0.00022859,2]
[349327407,1737125435429,-3141.39,0.00022859,2]
[349327409,1737125435438,-500.0,0.00022859,2]
[349327411,1737125435447,-500.67264075,0.00022859,2]
[349327413,1737125435456,-500.0,0.00022859,2]
[349327415,1737125435465,-500.0,0.00022859,2]
[349327417,1737125435475,-500.0,0.00022859,2]
[349327419,1737125435484,-500.0,0.00022859,2]
[349327421,1737125435494,-500.0,0.00022859,2]
[349327423,1737125435504,-500.0,0.00022859,2]
[349327425,1737125435513,-500.0,0.00022859,2]
[349327427,1737125435522,-500.0,0.00022859,2]
[349327429,1737125435532,-500.0,0.00022859,2]
[349327431,1737125435541,-500.0,0.00022859,2]
[349327433,1737125435550,-500.0,0.00022859,2]
[349327435,1737125435560,-500.0,0.00022859,2]
[349327437,1737125435569,-500.0,0.00022859,2]
[349327439,1737125435578,-500.0,0.00022859,2]
[349327441,1737125435587,-2397.79,0.00022859,2]
[349327443,1737125435596,-812.09,0.00022859,2]
[349327445,1737125435606,-500.0,0.00022859,2]
[349327447,1737125435618,-468.3800396,0.00022859,2]
[349327449,1737125435626,-500.0,0.00022859,2]
[349327451,1737125435635,-863.87576137,0.00022859,2]
[349327458,1737125435694,-518.77423863,0.00022859,2]
[349327460,1737125435703,-757.62,0.00022859,2]
[349327461,1737125435712,-799.96,0.00022859,2]
[349327463,1737125435721,-500.0,0.00022859,2]
[349327465,1737125435731,-500.0,0.00022859,2]
[349327467,1737125435741,-500.0,0.00022859,2]
[349327470,1737125435750,-2474.63,0.00022859,2]
[349327472,1737125435760,-500.0,0.00022859,2]
[349327474,1737125435770,-500.0,0.00022859,2]
[349327475,1737125435783,-500.0,0.00022859,2]
[349327477,1737125435795,-500.0,0.00022859,2]
[349327479,1737125435805,-2144.52,0.00022859,2]
[349327481,1737125435814,-500.0,0.00022859,2]
[349327483,1737125435827,-283.39244879,0.00022859,2]
[349327485,1737125435836,-767.51,0.00022859,2]
[349327487,1737125435845,-500.0,0.00022859,2]
[349327489,1737125435854,-500.0,0.00022859,2]
[349327491,1737125435863,-500.0,0.00022859,2]
[349327493,1737125435875,-500.0,0.00022859,2]
[349327495,1737125435884,-500.0,0.00022859,2]
[349327497,1737125435893,-500.0,0.00022859,2]
[349327498,1737125435905,-500.0,0.00022859,2]
[349327499,1737125435916,-500.0,0.00022859,2]
[349327500,1737125435926,-4035.77,0.00022859,2]
[349327501,1737125435935,-999.17,0.00022859,2]
[349327502,1737125435945,-1156.83,0.00022859,2]
[349327503,1737125435955,-500.0,0.00022859,2]
[349327504,1737125435964,-1848.46,0.00022859,2]
[349327505,1737125435974,-500.0,0.00022859,2]
[349327507,1737125435983,-500.0,0.00022859,2]
[349327508,1737125435993,-500.0,0.00022859,2]
[349327510,1737125436003,-500.0,0.00022859,2]
[349327512,1737125436012,-500.0,0.00022859,2]
[349327514,1737125436021,-500.33990254,0.00022859,2]
[349327516,1737125436031,-684.88,0.00022859,2]
[349327518,1737125436040,-500.0,0.00022859,2]
[349327520,1737125436049,-1942.39,0.00022859,2]
[349327522,1737125436058,-500.0,0.00022859,2]
[349327524,1737125436068,-500.0,0.00022859,2]
[349327526,1737125436077,-500.0,0.00022859,2]
[349327528,1737125436086,-500.0,0.00022859,2]
[349327530,1737125436097,-500.0,0.00022859,2]
[349327533,1737125436106,-3984.58,0.00022859,2]
[349327535,1737125436118,-928.58,0.00022859,2]